[Event "Titled Tuesday Blitz December 20 Late 2022"]
[White "Dias, Joao Batista"]
[Black "Ansh M Shah"]
[WhiteFideId "2108240"]
[BlackFideId "25033379"]
[WhiteElo "1898"]
[BlackElo "2084"]
[Result "1-0"]
[Round "03"]
[TimeControl "180+1"]
[Date "2022.12.21"]
[WhiteClock "0:00:39"]
[BlackClock "0:00:03"]

1. e4 {[%clk 0:02:56]}  c6 {[%clk 0:02:59]} 2. d4 {[%clk 0:02:55]}  d5 {[%clk 0:03:00]} 3. Nd2 {[%clk 0:02:54]}  dxe4 {[%clk 0:03:01]} 4. Nxe4 {[%clk 0:02:54]}  Nf6 {[%clk 0:03:01]} 5. Ng3 {[%clk 0:02:54]}  e6 {[%clk 0:02:58]} 6. Nf3 {[%clk 0:02:54]}  Be7 {[%clk 0:02:59]} 7. Bd3 {[%clk 0:02:52]}  O-O {[%clk 0:03:00]} 8. O-O {[%clk 0:02:52]}  Nbd7 {[%clk 0:03:01]} 9. Re1 {[%clk 0:02:52]}  b6 {[%clk 0:02:59]} 10. b3 {[%clk 0:02:49]}  Bb7 {[%clk 0:02:59]} 11. Bb2 {[%clk 0:02:49]}  c5 {[%clk 0:03:00]} 12. dxc5 {[%clk 0:02:49]}  Nxc5 {[%clk 0:03:01]} 13. Be2 {[%clk 0:02:45]}  Qxd1 {[%clk 0:03:00]} 14. Raxd1 {[%clk 0:02:45]}  Rfd8 {[%clk 0:03:00]} 15. Kf1 {[%clk 0:02:42]}  Rac8 {[%clk 0:02:53]} 16. c4 {[%clk 0:02:40]}  Bxf3 {[%clk 0:02:25]} 17. Bxf3 {[%clk 0:02:39]}  Nd3 {[%clk 0:02:24]} 18. Re2 {[%clk 0:02:31]}  Nxb2 {[%clk 0:02:24]} 19. Rxd8+ {[%clk 0:02:31]}  Rxd8 {[%clk 0:02:22]} 20. Rxb2 {[%clk 0:02:30]}  Ba3 {[%clk 0:02:12]} 21. Rc2 {[%clk 0:02:29]}  Bb4 {[%clk 0:02:10]} 22. Ke2 {[%clk 0:02:28]}  Kf8 {[%clk 0:02:07]} 23. Ne4 {[%clk 0:02:27]}  Nxe4 {[%clk 0:02:05]} 24. Bxe4 {[%clk 0:02:26]}  f5 {[%clk 0:02:05]} 25. Bf3 {[%clk 0:02:25]}  e5 {[%clk 0:02:04]} 26. Bd5 {[%clk 0:02:23]}  Ke7 {[%clk 0:02:03]} 27. f3 {[%clk 0:02:20]}  Kd6 {[%clk 0:02:03]} 28. Rc1 {[%clk 0:02:14]}  Kc5 {[%clk 0:02:03]} 29. Rd1 {[%clk 0:02:13]}  g6 {[%clk 0:01:59]} 30. Kd3 {[%clk 0:02:05]}  a5 {[%clk 0:01:40]} 31. a4 {[%clk 0:02:03]}  Ba3 {[%clk 0:01:29]} 32. Kc3 {[%clk 0:02:00]}  Bb4+ {[%clk 0:01:28]} 33. Kd3 {[%clk 0:02:00]}  Rd6 {[%clk 0:01:27]} 34. Ra1 {[%clk 0:01:56]}  Rd7 {[%clk 0:01:12]} 35. Ra2 {[%clk 0:01:55]}  Re7 {[%clk 0:01:12]} 36. Re2 {[%clk 0:01:55]}  Kd6 {[%clk 0:01:10]} 37. h3 {[%clk 0:01:51]}  Bc5 {[%clk 0:01:10]} 38. Re1 {[%clk 0:01:49]}  g5 {[%clk 0:01:08]} 39. Re2 {[%clk 0:01:49]}  Bd4 {[%clk 0:01:08]} 40. Re1 {[%clk 0:01:49]}  Kc5 {[%clk 0:01:07]} 41. Re2 {[%clk 0:01:43]}  Kb4 {[%clk 0:01:07]} 42. Kc2 {[%clk 0:01:43]}  h5 {[%clk 0:00:58]} 43. Re1 {[%clk 0:01:43]}  h4 {[%clk 0:00:59]} 44. Re2 {[%clk 0:01:43]}  Ra7 {[%clk 0:00:33]} 45. Re1 {[%clk 0:01:41]}  f4 {[%clk 0:00:18]} 46. Re2 {[%clk 0:01:41]}  b5 {[%clk 0:00:17]} 47. cxb5 {[%clk 0:01:37]}  Rc7+ {[%clk 0:00:17]} 48. Bc4 {[%clk 0:01:37]}  Rd7 {[%clk 0:00:15]} 49. Kd3 {[%clk 0:01:35]}  Rc7 {[%clk 0:00:15]} 50. Ke4 {[%clk 0:01:31]}  Kc3 {[%clk 0:00:12]} 51. Kd5 {[%clk 0:01:27]}  Rg7 {[%clk 0:00:10]} 52. Re1 {[%clk 0:01:25]}  Kd2 {[%clk 0:00:10]} 53. Re4 {[%clk 0:01:24]}  Kc3 {[%clk 0:00:09]} 54. Re2 {[%clk 0:01:23]}  Kb4 {[%clk 0:00:08]} 55. Ke6 {[%clk 0:01:21]}  Kc3 {[%clk 0:00:08]} 56. Kd5 {[%clk 0:01:20]}  Kb4 {[%clk 0:00:08]} 57. Ke6 {[%clk 0:01:16]}  Kc3 {[%clk 0:00:08]} 58. Kf6 {[%clk 0:01:16]}  Rc7 {[%clk 0:00:04]} 59. Kxg5 {[%clk 0:01:16]}  Rh7 {[%clk 0:00:05]} 60. Kg6 {[%clk 0:01:15]}  Rh8 {[%clk 0:00:05]} 61. Kg5 {[%clk 0:01:13]}  Rh7 {[%clk 0:00:05]} 62. Kg6 {[%clk 0:01:12]}  Rh8 {[%clk 0:00:05]} 63. Kf5 {[%clk 0:01:10]}  Rh5+ {[%clk 0:00:04]} 64. Kg4 {[%clk 0:01:09]}  Rh8 {[%clk 0:00:04]} 65. Kf5 {[%clk 0:01:09]}  Rh5+ {[%clk 0:00:04]} 66. Ke4 {[%clk 0:01:09]}  Rh7 {[%clk 0:00:05]} 67. Kf5 {[%clk 0:01:08]}  Rg7 {[%clk 0:00:05]} 68. Ke4 {[%clk 0:01:06]}  Rg3 {[%clk 0:00:05]} 69. Kd5 {[%clk 0:01:03]}  Rg7 {[%clk 0:00:06]} 70. Kc6 {[%clk 0:01:03]}  Rg6+ {[%clk 0:00:06]} 71. Kc7 {[%clk 0:01:01]}  Rg7+ {[%clk 0:00:06]} 72. Kc6 {[%clk 0:01:01]}  Kb4 {[%clk 0:00:04]} 73. Kd5 {[%clk 0:01:00]}  Rg6 {[%clk 0:00:04]} 74. Rxe5 {[%clk 0:00:59]}  Bxe5 {[%clk 0:00:03]} 75. Kxe5 {[%clk 0:00:59]}  Rxg2 {[%clk 0:00:04]} 76. Kxf4 {[%clk 0:00:59]}  Kc5 {[%clk 0:00:04]} 77. Kf5 {[%clk 0:00:57]}  Rg3 {[%clk 0:00:04]} 78. f4 {[%clk 0:00:56]}  Rxh3 {[%clk 0:00:05]} 79. Kg4 {[%clk 0:00:56]}  Rh1 {[%clk 0:00:05]} 80. Be2 {[%clk 0:00:53]}  h3 {[%clk 0:00:05]} 81. Bf3 {[%clk 0:00:52]}  Rf1 {[%clk 0:00:04]} 82. f5 {[%clk 0:00:46]}  h2 {[%clk 0:00:04]} 83. Ba8 {[%clk 0:00:43]}  h1=Q {[%clk 0:00:03]} 84. Bxh1 {[%clk 0:00:42]}  Rxh1 {[%clk 0:00:04]} 85. f6 {[%clk 0:00:42]}  Rg1+ {[%clk 0:00:04]} 86. Kf5 {[%clk 0:00:43]}  Rb1 {[%clk 0:00:03]} 87. Ke6 {[%clk 0:00:43]}  Rxb3 {[%clk 0:00:03]} 88. f7 {[%clk 0:00:43]}  Rf3 {[%clk 0:00:04]} 89. Ke7 {[%clk 0:00:43]}  Kb4 {[%clk 0:00:01]} 90. f8=Q {[%clk 0:00:43]}  Rxf8 {[%clk 0:00:02]} 91. Kxf8 {[%clk 0:00:43]}  Kxa4 {[%clk 0:00:02]} 92. b6 {[%clk 0:00:43]}  Ka3 {[%clk 0:00:03]} 93. b7 {[%clk 0:00:44]}  Ka2 {[%clk 0:00:03]} 94. b8=Q {[%clk 0:00:45]}  a4 {[%clk 0:00:04]} 95. Qh2+ {[%clk 0:00:40]}  Ka1 {[%clk 0:00:04]} 96. Qg1+ {[%clk 0:00:40]}  Ka2 {[%clk 0:00:04]} 97. Qf2+ {[%clk 0:00:40]}  Ka1 {[%clk 0:00:04]} 98. Qe1+ {[%clk 0:00:41]}  Ka2 {[%clk 0:00:05]} 99. Qd2+ {[%clk 0:00:41]}  Kb3 {[%clk 0:00:03]} 100. Qd5+ {[%clk 0:00:40]}  Kb2 {[%clk 0:00:03]} 101. Qb5+ {[%clk 0:00:39]}  Ka3 {[%clk 0:00:03]} 102. Ke7 {[%clk 0:00:39]}  Ka2 {[%clk 0:00:03]} 103. Qxa4+ {[%clk 0:00:39]} 1-0


[Site "https://www.chess.com"]

[Event "Titled Tuesday Blitz December 20 Late 2022"]
[White "Dong, Bao Nghia"]
[Black "Kaplan, Avi Harrison"]
[WhiteFideId "12400343"]
[BlackFideId "30934559"]
[WhiteElo "2305"]
[BlackElo "1983"]
[Result "1-0"]
[Round "03"]
[TimeControl "180+1"]
[Date "2022.12.21"]
[WhiteClock "0:02:31"]
[BlackClock "0:01:29"]

1. d4 {[%clk 0:02:59]}  Nf6 {[%clk 0:03:00]} 2. c4 {[%clk 0:03:00]}  c5 {[%clk 0:03:00]} 3. Nc3 {[%clk 0:03:01]}  cxd4 {[%clk 0:03:00]} 4. Qxd4 {[%clk 0:03:02]}  d6 {[%clk 0:02:56]} 5. Nf3 {[%clk 0:02:57]}  a6 {[%clk 0:02:56]} 6. g3 {[%clk 0:02:57]}  e5 {[%clk 0:02:53]} 7. Qd1 {[%clk 0:02:56]}  Be7 {[%clk 0:02:52]} 8. Bg2 {[%clk 0:02:56]}  O-O {[%clk 0:02:51]} 9. O-O {[%clk 0:02:57]}  h6 {[%clk 0:02:52]} 10. b3 {[%clk 0:02:57]}  Nbd7 {[%clk 0:02:50]} 11. Ba3 {[%clk 0:02:56]}  Qc7 {[%clk 0:02:49]} 12. Rc1 {[%clk 0:02:56]}  Nc5 {[%clk 0:02:43]} 13. Nd5 {[%clk 0:02:53]}  Nxd5 {[%clk 0:02:40]} 14. cxd5 {[%clk 0:02:54]}  Qa5 {[%clk 0:02:21]} 15. Bxc5 {[%clk 0:02:53]}  dxc5 {[%clk 0:02:15]} 16. Nxe5 {[%clk 0:02:53]}  Rd8 {[%clk 0:02:07]} 17. a4 {[%clk 0:02:51]}  Bf6 {[%clk 0:01:58]} 18. Nc4 {[%clk 0:02:50]}  Qb4 {[%clk 0:01:54]} 19. a5 {[%clk 0:02:48]}  Bf5 {[%clk 0:01:48]} 20. e4 {[%clk 0:02:47]}  Bg6 {[%clk 0:01:47]} 21. e5 {[%clk 0:02:47]}  Be7 {[%clk 0:01:45]} 22. d6 {[%clk 0:02:47]}  Bf8 {[%clk 0:01:38]} 23. Qd5 {[%clk 0:02:45]}  Qxb3 {[%clk 0:01:32]} 24. Nb6 {[%clk 0:02:32]}  Rab8 {[%clk 0:01:29]} 25. Qxb3 {[%clk 0:02:31]} 1-0


[Site "https://www.chess.com"]

[Event "Titled Tuesday Blitz December 20 Late 2022"]
[White "Dylag, Emilia"]
[Black "Bilan, Danila"]
[WhiteFideId "21805172"]
[BlackFideId "24161918"]
[WhiteElo "1878"]
[BlackElo "2182"]
[Result "0-1"]
[Round "03"]
[TimeControl "180+1"]
[Date "2022.12.21"]
[WhiteClock "0:00:02"]
[BlackClock "0:00:08"]

1. d4 {[%clk 0:03:00]}  d5 {[%clk 0:02:59]} 2. c4 {[%clk 0:02:59]}  c6 {[%clk 0:02:59]} 3. Nf3 {[%clk 0:02:58]}  Nf6 {[%clk 0:02:59]} 4. g3 {[%clk 0:02:57]}  Bf5 {[%clk 0:02:58]} 5. Nc3 {[%clk 0:02:57]}  e6 {[%clk 0:02:58]} 6. Nh4 {[%clk 0:02:55]}  Bg4 {[%clk 0:02:55]} 7. h3 {[%clk 0:02:53]}  Bh5 {[%clk 0:02:55]} 8. g4 {[%clk 0:02:52]}  Bg6 {[%clk 0:02:55]} 9. Qb3 {[%clk 0:02:41]}  Qb6 {[%clk 0:02:38]} 10. c5 {[%clk 0:02:35]}  Qc7 {[%clk 0:02:09]} 11. g5 {[%clk 0:02:30]}  Nfd7 {[%clk 0:01:45]} 12. Bg2 {[%clk 0:02:11]}  Be7 {[%clk 0:01:40]} 13. Bd2 {[%clk 0:01:56]}  b6 {[%clk 0:01:39]} 14. Nxg6 {[%clk 0:01:31]}  hxg6 {[%clk 0:01:38]} 15. e4 {[%clk 0:01:18]}  bxc5 {[%clk 0:01:28]} 16. exd5 {[%clk 0:01:11]}  cxd5 {[%clk 0:01:18]} 17. Nb5 {[%clk 0:00:57]}  Qb6 {[%clk 0:01:05]} 18. O-O {[%clk 0:00:38]}  O-O {[%clk 0:00:59]} 19. a4 {[%clk 0:00:36]}  a6 {[%clk 0:00:52]} 20. dxc5 {[%clk 0:00:34]}  Nxc5 {[%clk 0:00:50]} 21. Qe3 {[%clk 0:00:23]}  axb5 {[%clk 0:00:47]} 22. a5 {[%clk 0:00:21]}  Qb7 {[%clk 0:00:41]} 23. b4 {[%clk 0:00:20]}  Ne4 {[%clk 0:00:35]} 24. Bxe4 {[%clk 0:00:18]}  dxe4 {[%clk 0:00:35]} 25. Bc3 {[%clk 0:00:19]}  Nc6 {[%clk 0:00:32]} 26. Qxe4 {[%clk 0:00:14]}  Bxg5 {[%clk 0:00:25]} 27. h4 {[%clk 0:00:14]}  Bf6 {[%clk 0:00:20]} 28. Bxf6 {[%clk 0:00:13]}  gxf6 {[%clk 0:00:21]} 29. Rfc1 {[%clk 0:00:12]}  Nxa5 {[%clk 0:00:17]} 30. Qf4 {[%clk 0:00:07]}  Nc4 {[%clk 0:00:17]} 31. Qxf6 {[%clk 0:00:06]}  Qd5 {[%clk 0:00:16]} 32. Rxa8 {[%clk 0:00:03]}  Rxa8 {[%clk 0:00:16]} 33. Re1 {[%clk 0:00:03]}  Qf5 {[%clk 0:00:12]} 34. Qd4 {[%clk 0:00:02]}  e5 {[%clk 0:00:09]} 35. Qd5 {[%clk 0:00:02]}  Qg4+ {[%clk 0:00:09]} 36. Kh1 {[%clk 0:00:01]}  Qxh4+ {[%clk 0:00:09]} 37. Kg1 {[%clk 0:00:02]}  Qg4+ {[%clk 0:00:09]} 38. Kf1 {[%clk 0:00:02]}  Qh3+ {[%clk 0:00:08]} 0-1


[Site "https://www.chess.com"]

[Event "Titled Tuesday Blitz December 20 Late 2022"]
[White "Fieberg, Samuel"]
[Black "Megalios, Konstantinos"]
[WhiteFideId "12901717"]
[BlackFideId "4238044"]
[WhiteElo "2412"]
[BlackElo "2277"]
[Result "1-0"]
[Round "03"]
[TimeControl "180+1"]
[Date "2022.12.21"]
[WhiteClock "0:00:15"]
[BlackClock "0:00:17"]

1. d4 {[%clk 0:03:00]}  g6 {[%clk 0:02:58]} 2. Bg5 {[%clk 0:02:58]}  Bg7 {[%clk 0:02:57]} 3. e3 {[%clk 0:02:58]}  Nf6 {[%clk 0:02:56]} 4. Nf3 {[%clk 0:02:56]}  d6 {[%clk 0:02:55]} 5. c3 {[%clk 0:02:45]}  O-O {[%clk 0:02:54]} 6. Nbd2 {[%clk 0:02:44]}  Nbd7 {[%clk 0:02:46]} 7. h4 {[%clk 0:02:43]}  h6 {[%clk 0:02:45]} 8. Bf4 {[%clk 0:02:42]}  Re8 {[%clk 0:02:39]} 9. Bh2 {[%clk 0:02:42]}  e5 {[%clk 0:02:39]} 10. Bc4 {[%clk 0:02:37]}  e4 {[%clk 0:02:18]} 11. Ng1 {[%clk 0:02:36]}  Nb6 {[%clk 0:01:58]} 12. Bb3 {[%clk 0:02:34]}  a5 {[%clk 0:01:58]} 13. a4 {[%clk 0:02:33]}  Be6 {[%clk 0:01:55]} 14. c4 {[%clk 0:02:26]}  c5 {[%clk 0:01:53]} 15. d5 {[%clk 0:02:26]}  Bg4 {[%clk 0:01:48]} 16. Qb1 {[%clk 0:02:17]}  Nbd7 {[%clk 0:01:48]} 17. Bc2 {[%clk 0:02:16]}  Qe7 {[%clk 0:01:45]} 18. Ra3 {[%clk 0:02:09]}  Bf5 {[%clk 0:01:43]} 19. Ne2 {[%clk 0:02:08]}  Ne5 {[%clk 0:01:32]} 20. Bxe5 {[%clk 0:02:06]}  Qxe5 {[%clk 0:01:32]} 21. Rb3 {[%clk 0:02:04]}  Re7 {[%clk 0:01:16]} 22. Nc3 {[%clk 0:01:55]}  Rae8 {[%clk 0:01:14]} 23. Rb5 {[%clk 0:01:54]}  Ng4 {[%clk 0:00:54]} 24. Nd1 {[%clk 0:01:28]}  Bd7 {[%clk 0:00:54]} 25. Rxa5 {[%clk 0:01:25]}  f5 {[%clk 0:00:54]} 26. Ra7 {[%clk 0:01:23]}  Bc8 {[%clk 0:00:52]} 27. Ra8 {[%clk 0:01:20]}  Nf6 {[%clk 0:00:46]} 28. Rh3 {[%clk 0:01:09]}  Nd7 {[%clk 0:00:46]} 29. Rg3 {[%clk 0:01:01]}  Kh7 {[%clk 0:00:46]} 30. Nc3 {[%clk 0:00:53]}  Qf6 {[%clk 0:00:46]} 31. Ne2 {[%clk 0:00:47]}  Qxh4 {[%clk 0:00:42]} 32. Rh3 {[%clk 0:00:43]}  Qf6 {[%clk 0:00:42]} 33. Nf4 {[%clk 0:00:40]}  Ne5 {[%clk 0:00:39]} 34. b3 {[%clk 0:00:36]}  Ng4 {[%clk 0:00:36]} 35. Qd1 {[%clk 0:00:27]}  Qb2 {[%clk 0:00:32]} 36. Kf1 {[%clk 0:00:27]}  Bc3 {[%clk 0:00:32]} 37. Nb1 {[%clk 0:00:25]}  Bb4 {[%clk 0:00:31]} 38. Rg3 {[%clk 0:00:23]}  h5 {[%clk 0:00:31]} 39. Rh3 {[%clk 0:00:22]}  Qf6 {[%clk 0:00:28]} 40. Kg1 {[%clk 0:00:22]}  Kg7 {[%clk 0:00:26]} 41. Nd2 {[%clk 0:00:22]}  Qc3 {[%clk 0:00:22]} 42. Nf1 {[%clk 0:00:22]}  Rh8 {[%clk 0:00:20]} 43. Ng3 {[%clk 0:00:21]}  h4 {[%clk 0:00:18]} 44. Nge2 {[%clk 0:00:21]}  g5 {[%clk 0:00:18]} 45. Ne6+ {[%clk 0:00:20]}  Bxe6 {[%clk 0:00:18]} 46. Rxh8 {[%clk 0:00:21]}  Qf6 {[%clk 0:00:16]} 47. Ra8 {[%clk 0:00:19]}  Bf7 {[%clk 0:00:16]} 48. a5 {[%clk 0:00:15]}  Bg6 {[%clk 0:00:16]} 49. a6 {[%clk 0:00:15]}  bxa6 {[%clk 0:00:16]} 50. Rxa6 {[%clk 0:00:16]}  Qe5 {[%clk 0:00:16]} 51. Qa1 {[%clk 0:00:16]}  Rd7 {[%clk 0:00:15]} 52. Qxe5+ {[%clk 0:00:16]}  Nxe5 {[%clk 0:00:16]} 53. Rh1 {[%clk 0:00:15]}  Kf6 {[%clk 0:00:16]} 54. Kh2 {[%clk 0:00:15]}  Ng4+ {[%clk 0:00:17]} 55. Kg1 {[%clk 0:00:16]}  Ke7 {[%clk 0:00:17]} 56. f3 {[%clk 0:00:16]}  Nxe3 {[%clk 0:00:17]} 57. Bb1 {[%clk 0:00:17]}  exf3 {[%clk 0:00:16]} 58. gxf3 {[%clk 0:00:18]}  Kf6 {[%clk 0:00:15]} 59. Kf2 {[%clk 0:00:18]}  Ke5 {[%clk 0:00:16]} 60. Kxe3 {[%clk 0:00:18]}  Re7 {[%clk 0:00:16]} 61. Kf2 {[%clk 0:00:18]}  Bd2 {[%clk 0:00:15]} 62. Bd3 {[%clk 0:00:18]}  Rg7 {[%clk 0:00:14]} 63. Ra2 {[%clk 0:00:18]}  Bf7 {[%clk 0:00:13]} 64. Rxd2 {[%clk 0:00:17]}  g4 {[%clk 0:00:13]} 65. fxg4 {[%clk 0:00:17]}  fxg4 {[%clk 0:00:14]} 66. Rg1 {[%clk 0:00:17]}  g3+ {[%clk 0:00:14]} 67. Nxg3 {[%clk 0:00:18]}  hxg3+ {[%clk 0:00:14]} 68. Rxg3 {[%clk 0:00:19]}  Bg6 {[%clk 0:00:13]} 69. Rxg6 {[%clk 0:00:18]}  Rf7+ {[%clk 0:00:13]} 70. Kg2 {[%clk 0:00:17]}  Kd4 {[%clk 0:00:14]} 71. Bf5+ {[%clk 0:00:16]}  Ke3 {[%clk 0:00:14]} 72. Rd3+ {[%clk 0:00:17]}  Ke2 {[%clk 0:00:15]} 73. Rg5 {[%clk 0:00:17]}  Rf6 {[%clk 0:00:15]} 74. Rf3 {[%clk 0:00:16]}  Rf8 {[%clk 0:00:14]} 75. Rg4 {[%clk 0:00:17]}  Ke1 {[%clk 0:00:15]} 76. Re4+ {[%clk 0:00:17]}  Kd2 {[%clk 0:00:15]} 77. Ree3 {[%clk 0:00:17]}  Rg8+ {[%clk 0:00:15]} 78. Rg3 {[%clk 0:00:18]}  Rf8 {[%clk 0:00:15]} 79. Be4 {[%clk 0:00:18]}  Kd1 {[%clk 0:00:14]} 80. Ref3 {[%clk 0:00:17]}  Kd2 {[%clk 0:00:15]} 81. Rf2+ {[%clk 0:00:17]}  Ke1 {[%clk 0:00:15]} 82. Rxf8 {[%clk 0:00:13]}  Kd1 {[%clk 0:00:16]} 83. Rf2 {[%clk 0:00:14]}  Ke1 {[%clk 0:00:17]} 84. Kf3 {[%clk 0:00:14]}  Kd1 {[%clk 0:00:17]} 85. Rg1# {[%clk 0:00:15]} 1-0


[Site "https://www.chess.com"]

[Event "Titled Tuesday Blitz December 20 Late 2022"]
[White "Fiorito, Joaquin"]
[Black "Onslow, Alfie"]
[WhiteFideId "180173"]
[BlackFideId "436976"]
[WhiteElo "2157"]
[BlackElo "2015"]
[Result "1-0"]
[Round "03"]
[TimeControl "180+1"]
[Date "2022.12.21"]
[WhiteClock "0:01:38"]
[BlackClock "0:00:04"]

1. d4 {[%clk 0:03:00]}  d5 {[%clk 0:02:58]} 2. Nc3 {[%clk 0:03:01]}  g6 {[%clk 0:02:55]} 3. Bf4 {[%clk 0:03:00]}  c6 {[%clk 0:02:53]} 4. e3 {[%clk 0:03:00]}  Bg7 {[%clk 0:02:53]} 5. Be2 {[%clk 0:03:01]}  Nf6 {[%clk 0:02:53]} 6. h4 {[%clk 0:03:01]}  h5 {[%clk 0:02:52]} 7. Nf3 {[%clk 0:03:02]}  O-O {[%clk 0:02:50]} 8. Ne5 {[%clk 0:03:02]}  Nbd7 {[%clk 0:02:48]} 9. Qd2 {[%clk 0:03:02]}  Nxe5 {[%clk 0:02:44]} 10. Bxe5 {[%clk 0:03:03]}  Bf5 {[%clk 0:02:40]} 11. f3 {[%clk 0:03:03]}  Qb6 {[%clk 0:02:35]} 12. O-O-O {[%clk 0:03:03]}  a5 {[%clk 0:02:30]} 13. Bxf6 {[%clk 0:03:00]}  Bxf6 {[%clk 0:02:23]} 14. g4 {[%clk 0:03:00]}  hxg4 {[%clk 0:02:18]} 15. fxg4 {[%clk 0:03:01]}  Be4 {[%clk 0:02:19]} 16. Nxe4 {[%clk 0:02:59]}  dxe4 {[%clk 0:02:20]} 17. g5 {[%clk 0:02:57]}  Bg7 {[%clk 0:02:15]} 18. h5 {[%clk 0:02:57]}  Qb4 {[%clk 0:02:03]} 19. c3 {[%clk 0:02:56]}  Qa4 {[%clk 0:02:03]} 20. Kb1 {[%clk 0:02:56]}  b5 {[%clk 0:01:44]} 21. Bg4 {[%clk 0:02:52]}  b4 {[%clk 0:01:20]} 22. hxg6 {[%clk 0:02:49]}  bxc3 {[%clk 0:01:20]} 23. Qxc3 {[%clk 0:02:45]}  f5 {[%clk 0:01:11]} 24. Be2 {[%clk 0:02:38]}  Rfb8 {[%clk 0:01:05]} 25. Bc4+ {[%clk 0:02:36]}  Kf8 {[%clk 0:01:05]} 26. Rdf1 {[%clk 0:02:17]}  e6 {[%clk 0:00:58]} 27. Bxe6 {[%clk 0:02:17]}  Ke7 {[%clk 0:00:53]} 28. Bb3 {[%clk 0:02:06]}  Qb5 {[%clk 0:00:46]} 29. Bc4 {[%clk 0:01:50]}  Qb4 {[%clk 0:00:41]} 30. Qxb4+ {[%clk 0:01:47]}  Rxb4 {[%clk 0:00:42]} 31. b3 {[%clk 0:01:43]}  Rab8 {[%clk 0:00:40]} 32. Kc2 {[%clk 0:01:41]}  Kd6 {[%clk 0:00:10]} 33. Rxf5 {[%clk 0:01:39]}  a4 {[%clk 0:00:05]} 34. Rh7 {[%clk 0:01:39]}  Bf8 {[%clk 0:00:04]} 35. Rf6# {[%clk 0:01:38]} 1-0


[Site "https://www.chess.com"]

[Event "Titled Tuesday Blitz December 20 Late 2022"]
[White "Floresvillar Gonzalez, Luis Migu"]
[Black "ArchibaldCerveza29"]
[WhiteFideId "5100542"]
[WhiteElo "2040"]
[BlackElo "2440"]
[Result "0-1"]
[Round "03"]
[TimeControl "180+1"]
[Date "2022.12.21"]
[WhiteClock "0:00:13"]
[BlackClock "0:00:57"]

1. d4 {[%clk 0:02:57]}  d5 {[%clk 0:03:00]} 2. c3 {[%clk 0:02:55]}  c5 {[%clk 0:02:59]} 3. e3 {[%clk 0:02:53]}  Nf6 {[%clk 0:02:59]} 4. Bd3 {[%clk 0:02:53]}  Nc6 {[%clk 0:02:59]} 5. Nd2 {[%clk 0:02:53]}  e5 {[%clk 0:02:59]} 6. dxe5 {[%clk 0:02:51]}  Nxe5 {[%clk 0:03:00]} 7. Be2 {[%clk 0:02:51]}  Bd6 {[%clk 0:02:58]} 8. Ngf3 {[%clk 0:02:50]}  Ng6 {[%clk 0:02:54]} 9. O-O {[%clk 0:02:50]}  O-O {[%clk 0:02:55]} 10. Qc2 {[%clk 0:02:49]}  b6 {[%clk 0:02:55]} 11. b3 {[%clk 0:02:48]}  Bb7 {[%clk 0:02:55]} 12. Bb2 {[%clk 0:02:47]}  Re8 {[%clk 0:02:55]} 13. Rad1 {[%clk 0:02:46]}  Qe7 {[%clk 0:02:55]} 14. Rfe1 {[%clk 0:02:44]}  h5 {[%clk 0:02:54]} 15. h3 {[%clk 0:02:41]}  Rad8 {[%clk 0:02:52]} 16. c4 {[%clk 0:02:37]}  Bb8 {[%clk 0:02:36]} 17. cxd5 {[%clk 0:02:35]}  Nxd5 {[%clk 0:02:37]} 18. a3 {[%clk 0:02:30]}  Qc7 {[%clk 0:02:31]} 19. Nf1 {[%clk 0:02:08]}  Nde7 {[%clk 0:02:04]} 20. Rxd8 {[%clk 0:02:03]}  Rxd8 {[%clk 0:02:05]} 21. Rd1 {[%clk 0:02:03]}  Rxd1 {[%clk 0:02:03]} 22. Qxd1 {[%clk 0:01:56]}  Qd6 {[%clk 0:02:03]} 23. Qxd6 {[%clk 0:01:44]}  Bxd6 {[%clk 0:02:04]} 24. Bc4 {[%clk 0:01:43]}  Bd5 {[%clk 0:02:04]} 25. N1d2 {[%clk 0:01:39]}  f6 {[%clk 0:01:58]} 26. a4 {[%clk 0:01:39]}  Kf7 {[%clk 0:01:58]} 27. e4 {[%clk 0:01:34]}  Bxc4 {[%clk 0:01:57]} 28. Nxc4 {[%clk 0:01:34]}  Bc7 {[%clk 0:01:54]} 29. e5 {[%clk 0:01:34]}  fxe5 {[%clk 0:01:48]} 30. Nfxe5+ {[%clk 0:01:34]}  Nxe5 {[%clk 0:01:48]} 31. Nxe5+ {[%clk 0:01:28]}  Ke6 {[%clk 0:01:48]} 32. Nc4 {[%clk 0:01:24]}  g6 {[%clk 0:01:47]} 33. Kf1 {[%clk 0:01:21]}  Nf5 {[%clk 0:01:44]} 34. Ke2 {[%clk 0:01:20]}  Kd5 {[%clk 0:01:45]} 35. Kd3 {[%clk 0:01:18]}  a6 {[%clk 0:01:38]} 36. g4 {[%clk 0:01:15]}  hxg4 {[%clk 0:01:38]} 37. hxg4 {[%clk 0:01:15]}  Nd6 {[%clk 0:01:32]} 38. f3 {[%clk 0:01:04]}  Nf7 {[%clk 0:01:27]} 39. Ne3+ {[%clk 0:01:01]}  Ke6 {[%clk 0:01:27]} 40. Nc4 {[%clk 0:00:53]}  Ng5 {[%clk 0:01:23]} 41. Ke3 {[%clk 0:00:51]}  Kd5 {[%clk 0:01:20]} 42. Bf6 {[%clk 0:00:48]}  Ne6 {[%clk 0:01:13]} 43. Bc3 {[%clk 0:00:32]}  Bf4+ {[%clk 0:01:11]} 44. Ke2 {[%clk 0:00:30]}  Nd4+ {[%clk 0:01:10]} 45. Bxd4 {[%clk 0:00:29]}  Kxd4 {[%clk 0:01:10]} 46. Nxb6 {[%clk 0:00:28]}  Bc7 {[%clk 0:01:06]} 47. Nd7 {[%clk 0:00:26]}  Bd6 {[%clk 0:01:00]} 48. Kd2 {[%clk 0:00:25]}  g5 {[%clk 0:00:58]} 49. Nb6 {[%clk 0:00:23]}  Bf4+ {[%clk 0:00:58]} 50. Kc2 {[%clk 0:00:20]}  Ke3 {[%clk 0:00:58]} 51. Nd7 {[%clk 0:00:20]}  Bd6 {[%clk 0:00:54]} 52. Kc3 {[%clk 0:00:18]}  Kxf3 {[%clk 0:00:54]} 53. Nf6 {[%clk 0:00:17]}  Be5+ {[%clk 0:00:53]} 54. Kc4 {[%clk 0:00:16]}  Bxf6 {[%clk 0:00:54]} 55. Kxc5 {[%clk 0:00:16]}  a5 {[%clk 0:00:53]} 56. b4 {[%clk 0:00:15]}  axb4 {[%clk 0:00:54]} 57. Kxb4 {[%clk 0:00:15]}  Bd4 {[%clk 0:00:54]} 58. a5 {[%clk 0:00:15]}  Bf2 {[%clk 0:00:55]} 59. Kc4 {[%clk 0:00:15]}  Kxg4 {[%clk 0:00:55]} 60. Kd5 {[%clk 0:00:15]}  Kf3 {[%clk 0:00:56]} 61. a6 {[%clk 0:00:13]}  g4 {[%clk 0:00:57]} 0-1


[Site "https://www.chess.com"]